bitfinex/quotes_SOLUSD_20220130
["timestamp","ask_amount","ask_price","bid_price","bid_amount"]
[1643521511791,0.45,96.028,95.978,6.0]
[1643521512593,0.45,96.028,95.988,6.0]
[1643521512796,0.45,96.028,95.988,18.27]
[1643521514096,0.45,96.028,95.988,12.27]
[1643521514998,0.45,96.028,95.968,24.2943]
[1643521514999,6.0,96.019,95.968,24.2943]
[1643521515200,6.0,96.019,95.948,1.43844969]
[1643521515400,23.5552,96.018,95.956,0.25]
[1643521515699,0.2,96.017,95.956,0.25]
[1643521515901,0.2,96.017,95.956,6.25]
[1643521516120,0.25,96.018,95.958,6.0]
[1643521516301,0.25,96.026,95.959,24.5784]
[1643521516605,0.25,96.026,95.969,6.0]
[1643521516801,23.4014,96.029,95.969,6.0]
[1643521517001,0.2,96.028,95.969,6.0]
[1643521517401,0.25,96.029,95.959,24.3284]
[1643521517601,104.45,96.029,95.959,24.3284]
[1643521517900,0.2,96.028,95.96,0.25]
[1643521518101,6.0,96.019,95.969,6.0]
[1643521518303,0.25,96.018,95.969,6.0]
[1643521518703,6.25,96.018,95.969,6.0]
[1643521518904,6.45,96.018,95.969,6.0]
[1643521519206,6.25,96.018,95.969,6.0]
[1643521519903,6.25,96.018,95.97,0.25]
[1643521520703,6.0,96.018,95.97,0.25]
[1643521521103,6.0,96.018,95.97,6.25]
[1643521521805,6.0,96.018,95.97,6.0]
[1643521522005,0.25,96.017,95.96,15.628]
[1643521522204,0.25,96.017,95.959,24.3284]
[1643521522505,0.25,96.017,95.96,0.25]
[1643521522905,6.0,96.018,95.96,0.25]
[1643521523104,6.0,96.018,95.969,6.0]
[1643521523304,6.0,96.018,95.97,0.25]
[1643521524507,6.0,96.018,95.97,6.25]
[1643521524707,6.0,96.018,95.97,6.0]
[1643521524936,6.0,96.018,95.971,0.25]
[1643521525335,0.25,96.017,95.971,0.25]
[1643521525936,0.25,96.017,95.961,0.25]
[1643521527636,0.25,96.017,95.97,6.0]
[1643521527935,0.25,96.017,95.971,0.25]
[1643521528136,0.25,96.017,95.961,0.25]
[1643521528137,0.25,96.017,95.959,24.3284]
[1643521528539,6.25,96.017,95.959,24.3284]
[1643521528739,6.0,96.008,95.959,24.3284]
[1643521528940,0.2,96.008,95.96,0.25]
[1643521529245,28.7952,96.017,95.969,6.0]
[1643521529246,0.2,96.016,95.969,6.0]
[1643521529445,6.25,96.017,95.969,6.0]
[1643521529641,6.0,96.007,95.97,6.25]
[1643521530244,6.0,96.025,95.97,0.25]
[1643521530643,6.0,96.024,95.97,6.0]
[1643521530845,6.2,96.024,95.971,0.25]
[1643521531044,6.0,96.024,95.971,22.8204]
[1643521536648,0.25,96.023,95.971,22.8204]
[1643521537548,0.25,96.023,95.971,22.5704]
[1643521538151,6.0,96.024,95.971,22.5704]
[1643521538350,0.2,96.033,95.981,6.0]
[1643521538551,1.44975303,96.058,95.982,22.875]
[1643521538750,1.44975303,96.074,95.988,1.43844969]
[1643521538949,2.86284593,96.101,95.982,23.125]
[1643521538950,1.44975303,96.084,95.992,6.0]
[1643521539155,1.44975303,96.086,96.0,6.0]
[1643521539351,35.0101235,96.083,96.001,0.25]
[1643521539551,35.0101235,96.083,96.003,6.0]
[1643521539552,0.2,96.082,96.003,6.0]
[1643521539951,0.2,96.082,96.004,0.25]
[1643521540149,0.2,96.082,96.004,22.9461]
[1643521540356,104.4,96.082,96.004,22.9461]
[1643521540553,0.2,96.081,96.004,22.9461]
[1643521540953,0.2,96.082,96.014,6.0]
[1643521541153,0.2,96.082,96.015,30.4979]
[1643521541354,0.45,96.082,96.016,0.25]
[1643521541559,0.45,96.082,96.015,24.4979]
[1643521542455,0.45,96.082,96.025,6.0]
[1643521543655,0.45,96.082,96.015,24.4979]
[1643521543855,25.0277,96.082,96.015,24.4979]
[1643521544057,0.2,96.081,96.015,24.4979]
[1643521545861,0.2,96.081,96.016,0.25]
[1643521547062,0.2,96.081,96.025,6.0]
[1643521547863,0.2,96.081,96.016,0.25]
[1643521549461,0.2,96.081,96.025,6.0]
[1643521549865,0.2,96.081,96.015,24.4979]
[1643521550066,0.2,96.081,96.016,0.25]
[1643521550862,0.2,96.081,96.025,6.0]
[1643521553865,0.2,96.081,96.016,0.25]
[1643521554466,0.2,96.081,96.025,6.0]
[1643521554667,0.2,96.081,96.026,23.1665]
[1643521554879,0.2,96.081,96.026,23.4165]
[1643521555069,0.2,96.081,96.026,24.93488738]
[1643521555272,0.2,96.081,96.036,6.0]
[1643521555669,0.2,96.081,96.037,0.25]
[1643521555970,0.45,96.081,95.992,24.7821]
[1643521556173,6.0,96.072,95.992,24.7821]
[1643521556374,0.25,96.071,96.002,6.0]
[1643521556572,0.25,96.071,96.01,6.0]
[1643521556873,0.25,96.071,96.011,23.257]
[1643521557471,0.45,96.081,96.011,23.257]
[1643521560306,0.45,96.081,96.011,23.007]
[1643521560507,6.0,96.072,96.011,23.007]
[1643521560704,6.0,96.072,96.01,6.0]
[1643521560904,0.25,96.071,95.992,6.0]
[1643521561105,25.2015,96.071,95.99,6.0]
[1643521561306,0.2,96.07,95.99,6.0]
[1643521561504,6.0,96.061,95.991,6.0]
[1643521561703,23.2213,96.06,95.991,6.0]
[1643521561905,0.2,96.059,95.992,0.25]
[1643521562104,33.55839712,96.049,95.992,0.25]
[1643521562505,0.2,96.048,95.992,0.25]
[1643521563008,0.2,96.048,95.992,24.29]
[1643521563405,0.2,96.048,96.002,6.0]
[1643521563806,0.2,96.048,96.003,0.25]
[1643521564606,6.0,96.039,96.003,0.25]
[1643521564806,6.0,96.039,95.993,0.25]
[1643521565206,6.0,96.038,95.993,0.25]
[1643521565710,6.0,96.038,95.992,24.04]
[1643521567209,6.0,96.038,95.993,0.25]
[1643521569619,6.0,96.039,95.992,24.04]
[1643521570616,6.0,96.038,95.992,24.04]
[1643521570819,6.2,96.038,95.993,0.25]
[1643521571015,6.0,96.038,95.993,0.25]
[1643521571216,6.0,96.039,95.993,0.25]
[1643521572016,6.0,96.038,95.993,0.25]
[1643521574419,6.0,96.039,95.993,0.25]
[1643521575022,6.0,96.038,95.993,0.25]
[1643521575220,6.2,96.038,95.993,0.25]
[1643521575420,6.0,96.038,95.992,24.04]
[1643521575619,6.0,96.038,95.99,15.623]
[1643521575820,6.0,96.038,95.991,0.25]
[1643521576919,6.0,96.039,95.991,0.25]
[1643521577120,6.0,96.037,95.991,0.25]
[1643521580624,6.0,96.039,95.991,0.25]
[1643521581028,6.0,96.039,96.0,6.0]
[1643521581426,6.0,96.039,96.001,0.25]
[1643521582023,6.0,96.039,95.99,15.623]
[1643521582227,6.0,96.039,95.96,12.54]
[1643521582429,6.0,96.039,95.972,24.32324969]
[1643521582624,6.0,96.038,95.983,6.0]
[1643521582823,6.45,96.038,95.982,6.0]
[1643521583024,6.25,96.038,95.982,6.0]
[1643521583524,6.25,96.038,95.983,0.25]
[1643521583731,6.25,96.038,95.983,24.5464]
[1643521584028,6.25,96.038,95.993,6.0]
[1643521584428,6.25,96.038,95.994,0.25]
[1643521584729,6.25,96.038,95.993,6.0]
[1643521585327,6.25,96.038,95.994,0.25]
[1643521585529,6.25,96.038,95.993,6.0]
[1643521585928,6.25,96.038,95.994,0.25]
[1643521586132,6.25,96.038,95.993,6.0]
[1643521591035,6.0,96.038,95.993,6.0]
[1643521591235,0.25,96.037,95.993,6.0]
[1643521591836,0.25,96.037,95.994,0.25]
[1643521592034,0.25,96.037,95.972,22.8848]
[1643521592035,0.25,96.037,95.972,24.32324969]
[1643521592237,0.25,96.037,95.973,23.6479]
[1643521592436,0.25,96.037,95.973,23.8979]
[1643521592635,0.25,96.037,95.965,1.43844969]
[1643521592636,104.45,96.037,95.965,1.43844969]
[1643521592836,0.2,96.036,95.965,1.43844969]
[1643521593035,6.0,96.027,95.962,1.43844969]
[1643521593236,6.0,96.027,95.96,1.43844969]
[1643521593435,24.4586,96.026,95.963,0.25]
[1643521593641,6.0,96.016,95.963,0.25]
[1643521593839,35.03893312,96.015,95.963,0.25]
[1643521594044,0.2,96.014,95.956,1.43844969]
[1643521594239,0.2,96.014,95.958,0.25]
[1643521595040,23.9015,96.014,95.95,15.629]
[1643521595239,0.2,96.013,95.95,15.629]
[1643521595439,6.0,96.004,95.95,15.629]
[1643521595741,6.0,96.005,95.951,23.9825]
[1643521595939,0.25,96.003,95.951,23.9825]
[1643521596140,6.0,96.004,95.944,10.5370228]
[1643521596339,6.2,96.004,95.945,0.25]
[1643521596546,6.0,96.004,95.951,1.52753552]
[1643521596740,0.25,96.003,95.952,6.0]
[1643521596942,0.25,96.003,95.961,6.0]
[1643521597145,0.25,96.003,95.952,6.0]
[1643521597343,0.25,96.003,95.953,0.25]
[1643521597949,0.45,96.014,95.953,0.25]
[1643521598547,0.45,96.014,95.961,6.0]
[1643521598748,0.25,96.014,95.961,6.0]
[1643521598947,0.45,96.021,95.962,1.77260046]
[1643521599150,0.45,96.021,95.962,25.12530046]
[1643521599347,0.45,96.021,95.962,23.6027]
[1643521599547,34.26335424,96.021,95.962,23.6027]
[1643521599747,0.2,96.02,95.962,23.6027]
[1643521600370,0.2,96.02,95.972,6.0]
[1643521600573,0.2,96.02,95.973,30.3445]
[1643521600771,0.2,96.02,95.973,24.5945]
[1643521601774,0.45,96.02,95.973,24.5945]
[1643521603376,0.2,96.02,95.974,1.52260046]
[1643521603573,0.2,96.045,95.984,6.0]
[1643521603773,0.45,96.045,95.985,23.5173]
[1643521604172,6.0,96.036,95.985,23.5173]
[1643521604377,38.70341939,96.035,95.985,23.5173]
[1643521604781,0.2,96.034,95.985,23.5173]
[1643521605576,24.2263,96.034,95.985,23.5173]
[1643521605776,0.45,96.033,95.985,23.5173]
[1643521606880,0.2,96.033,95.985,23.5173]
[1643521607077,6.0,96.051,95.99,15.623]
[1643521607278,6.0,96.057,95.991,0.25]
[1643521607476,6.0,96.057,95.986,1.52260046]
[1643521607677,6.0,96.064,95.991,0.25]
[1643521607877,45.56700769,96.063,95.985,23.2673]
[1643521608082,6.0,96.053,95.987,0.25]
[1643521608282,24.2418,96.052,95.987,0.25]
[1643521608480,0.2,96.051,95.987,0.25]
[1643521608688,6.0,96.042,95.987,0.25]
[1643521608882,0.25,96.041,95.987,0.25]
[1643521609282,0.25,96.041,95.986,0.25]
[1643521610285,0.25,96.041,95.99,15.623]
[1643521611284,0.25,96.041,95.991,0.25]
[1643521612784,0.25,96.041,95.986,0.25]
[1643521614590,0.25,96.041,95.995,6.0]
[1643521614788,0.25,96.041,95.996,0.25]
[1643521614987,0.25,96.041,95.986,0.25]
[1643521615589,0.25,96.041,95.995,6.0]
[1643521615789,0.45,96.051,95.996,23.9325]
[1643521616797,0.2,96.051,95.996,23.9325]
[1643521616995,0.45,96.051,96.006,6.0]
[1643521617200,0.25,96.051,96.006,6.0]
[1643521617396,0.25,96.051,96.007,0.25]
[1643521617594,0.25,96.051,95.996,23.6825]
[1643521617795,0.25,96.051,95.997,0.25]
[1643521618195,0.45,96.061,95.997,0.25]
[1643521619219,0.45,96.061,95.99,6.0]
[1643521619421,0.45,96.061,95.991,0.25]
[1643521619621,0.45,96.061,95.991,6.25]
[1643521620824,0.45,96.061,95.981,24.1426]
[1643521620825,6.0,96.052,95.981,24.1426]
[1643521621025,6.0,96.042,95.982,0.25]
[1643521621332,0.25,96.041,95.982,0.25]
[1643521621926,0.25,96.041,95.991,6.0]
[1643521622124,0.25,96.041,95.982,0.25]
[1643521622530,0.25,96.051,95.981,24.1426]
[1643521623129,0.25,96.051,95.991,6.0]
[1643521623930,0.25,96.051,95.992,25.2418]
[1643521624128,0.25,96.051,95.992,24.9918]
[1643521624328,0.25,96.051,95.993,0.25]
[1643521624727,24.2468,96.051,95.993,0.25]
[1643521624930,0.2,96.05,95.993,0.25]
[1643521625128,6.0,96.041,95.993,0.25]
[1643521625330,0.25,96.04,95.993,0.25]
[1643521626230,24.8135,96.04,95.981,23.4965]
[1643521626431,0.2,96.039,95.981,23.4965]
[1643521626632,6.0,96.03,95.981,23.4965]
[1643521629242,24.0014,96.029,95.981,23.4965]
[1643521629442,0.2,96.028,95.981,23.4965]
[1643521630642,6.0,96.019,95.981,23.4965]
[1643521633645,0.25,96.018,95.963,16.66558508]
[1643521633847,0.25,96.018,95.902,24.7149]
[1643521633848,104.45,96.018,95.943,41.37468508]
[1643521634047,104.45,96.018,95.941,1.43844969]
[1643521634048,6.0,96.008,95.941,1.43844969]
[1643521634246,41.45743799,96.005,95.928,2.26827829]
[1643521634446,41.45743799,96.005,95.928,0.8298286]
[1643521634447,104.4,96.004,95.928,0.8298286]
[1643521634646,6.0,95.994,95.928,0.8298286]
[1643521634847,23.448,95.993,95.928,0.8298286]
[1643521635052,6.0,95.983,95.928,0.8298286]
[1643521635452,0.25,95.982,95.928,0.8298286]
[1643521638178,104.45,95.982,95.928,0.8298286]
[1643521638379,0.2,95.981,95.928,0.8298286]
[1643521638580,6.0,95.972,95.928,0.8298286]
[1643521638780,33.20903065,95.971,95.928,0.8298286]
[1643521638981,0.2,95.97,95.928,0.8298286]
[1643521639182,6.0,95.961,95.928,0.8298286]
[1643521639382,0.25,95.96,95.928,0.8298286]
[1643521639583,6.25,95.96,95.928,0.8298286]
[1643521639784,6.45,95.96,95.928,0.8298286]
[1643521639983,6.25,95.96,95.928,0.8298286]
[1643521645890,104.2,95.959,95.928,0.8298286]
[1643521646089,6.0,95.949,95.928,0.8298286]
[1643521646290,104.45,95.948,95.928,0.8298286]
[1643521646488,0.2,95.947,95.928,0.8298286]
[1643521649993,0.25,95.948,95.928,0.8298286]
[1643521650393,0.45,95.956,95.928,0.8298286]
[1643521650597,6.0,95.947,95.928,0.8298286]
[1643521650795,0.25,95.946,95.928,0.8298286]
[1643521651600,6.0,95.947,95.928,0.8298286]
[1643521651798,0.25,95.946,95.928,0.8298286]
[1643521652800,6.0,95.948,95.928,0.8298286]
[1643521653206,0.25,95.947,95.928,0.8298286]
[1643521654904,104.45,95.947,95.928,0.8298286]
[1643521655104,0.2,95.946,95.874,1.43844969]
[1643521655306,40.13324325,95.936,95.861,22.9633]
[1643521655504,6.0,95.926,95.861,22.9633]
[1643521655904,6.25,95.925,95.861,22.9633]
[1643521656130,0.2,95.925,95.871,6.0]
[1643521656304,0.45,95.934,95.871,6.0]
[1643521656504,0.45,95.934,95.872,24.4858]
[1643521656704,0.25,95.934,95.872,24.7358]
[1643521656904,0.25,95.934,95.882,6.0]
[1643521657308,0.25,95.934,95.883,0.25]
[1643521657503,0.2,95.935,95.882,6.0]
[1643521657504,0.45,95.935,95.882,6.0]
[1643521657706,23.6958,95.935,95.872,24.4858]
[1643521657906,0.2,95.934,95.873,0.25]
[1643521658509,0.2,95.934,95.882,6.0]
[1643521659508,0.45,95.934,95.882,6.0]
[1643521659909,0.2,95.934,95.882,6.0]
[1643521660109,6.0,95.937,95.883,0.25]
[1643521660309,6.0,95.937,95.883,1.78655668]
[1643521660511,0.2,95.945,95.893,6.0]
[1643521660912,46.46723402,95.945,95.894,0.25]
[1643521661109,0.2,95.944,95.894,8.34283548]
[1643521661310,0.2,95.944,95.894,31.87843548]
[1643521662112,0.2,95.944,95.894,31.62843548]
[1643521662510,104.4,95.944,95.894,31.62843548]
[1643521662712,0.2,95.943,95.894,31.62843548]
[1643521663110,46.26723402,95.945,95.894,31.62843548]
[1643521663111,0.2,95.944,95.894,31.62843548]
[1643521664214,0.45,95.944,95.894,31.62843548]
[1643521665113,0.45,95.944,95.895,0.25]
[1643521665714,0.45,95.944,95.896,8.09283548]
[1643521665914,0.45,95.944,95.897,0.25]
[1643521666117,0.45,95.944,95.896,8.09283548]
[1643521666317,15.644,95.97,95.897,0.25]
[1643521666616,1.44818325,95.996,95.91,12.54]
[1643521666815,4.34442773,96.05,95.92,6.0]
[1643521667015,118.57942717,96.058,95.974,1.53465489]
[1643521667216,1.44806859,96.04,95.974,1.53465489]
[1643521667415,118.57942717,96.058,96.0,15.621]
[1643521667614,118.57942717,96.058,96.01,6.0]
[1643521667816,97.23792867,96.133,96.01,6.0]
[1643521667817,1.44806859,96.078,96.011,0.25]
[1643521668015,4.34420577,96.105,96.011,24.3423]
[1643521668215,1.44806859,96.125,96.012,24.39755489]
[1643521668416,1.44806859,96.125,96.021,6.0]
[1643521668620,2.10002074,96.13,96.05,15.611]
[1643521668815,2.10002074,96.13,96.06,12.54]
[1643521669015,2.10002074,96.13,96.07,18.54]
[1643521669218,2.10002074,96.13,96.08,12.54]
[1643521669417,2.10002074,96.13,96.081,0.35]
[1643521669616,36.03519009,96.129,96.081,0.1]
[1643521669821,36.03519009,96.129,96.066,6.0]
[1643521670915,36.03519009,96.129,96.057,0.1]
[1643521671143,0.25,96.128,96.041,0.1]
[1643521671339,6.0,96.119,96.02,12.54]
[1643521671541,6.0,96.119,96.03,6.0]
[1643521671738,0.25,96.118,96.03,6.0]
[1643521671940,0.25,96.118,96.031,24.4699]
[1643521672141,6.25,96.118,96.032,0.1]
[1643521672340,6.35,96.118,96.032,0.1]
[1643521672541,37.12225864,96.109,96.032,0.1]
[1643521672841,6.35,96.108,96.032,0.1]
[1643521673039,0.35,96.108,96.041,6.0]
[1643521675341,0.1,96.108,96.042,8.09283548]
[1643521675543,0.1,96.108,96.042,8.44283548]
[1643521676743,0.35,96.108,96.042,8.44283548]
[1643521680049,104.55,96.108,96.042,8.44283548]
[1643521680247,0.1,96.107,96.042,8.44283548]
[1643521680448,6.0,96.098,96.042,8.19283548]
[1643521680650,6.0,96.098,96.042,8.09283548]
[1643521680851,0.25,96.097,96.042,8.09283548]
[1643521681052,0.25,96.097,96.033,8.09283548]
[1643521681461,104.45,96.097,96.033,8.09283548]
[1643521681660,0.1,96.096,96.033,8.09283548]
[1643521683869,0.35,96.108,96.034,0.25]
[1643521684061,104.55,96.108,96.034,0.25]
[1643521684262,0.1,96.107,96.035,8.09283548]
[1643521684462,6.0,96.098,96.035,8.09283548]
[1643521684763,0.25,96.097,96.035,8.09283548]
[1643521685963,15.625,96.09,96.035,8.09283548]
[1643521686162,46.60104077,96.088,96.035,8.09283548]
[1643521686366,6.0,96.08,96.035,8.09283548]
[1643521686565,0.35,96.087,96.035,8.09283548]
[1643521686566,6.0,96.078,96.035,8.09283548]
[1643521686763,0.25,96.077,96.035,8.09283548]
[1643521686963,104.45,96.077,96.035,8.09283548]
[1643521687162,6.0,96.067,96.035,8.09283548]
[1643521687362,44.01677014,96.066,96.035,8.09283548]
[1643521687565,0.1,96.065,95.984,8.09283548]
[1643521687764,0.1,96.065,95.992,6.0]
[1643521687963,0.1,96.065,95.994,6.0]
[1643521688164,0.1,96.065,95.995,24.3303]
[1643521688364,0.1,96.065,96.0,6.0]
[1643521688562,0.1,96.065,95.996,0.1]
[1643521688563,0.1,96.065,96.005,6.0]
[1643521690668,0.1,96.065,96.006,8.09283548]
[1643521690868,0.1,96.065,96.006,8.19283548]
[1643521691474,104.3,96.065,96.006,8.19283548]
[1643521691669,0.1,96.064,96.006,8.19283548]
[1643521691869,0.1,96.065,96.006,8.19283548]
[1643521692268,0.1,96.065,96.007,0.25]
[1643521692872,0.1,96.065,96.016,6.0]
[1643521693571,0.1,96.065,96.008,0.1]
[1643521693572,0.1,96.065,96.017,6.0]
[1643521693772,0.1,96.065,96.017,8.09283548]
[1643521693974,0.35,96.065,96.017,14.09283548]
[1643521694171,0.35,96.065,96.018,0.1]
[1643521694571,0.1,96.065,96.018,0.1]
[1643521694772,0.1,96.065,96.018,0.35]
[1643521694970,0.1,96.065,96.017,8.09283548]
[1643521695671,6.0,96.056,96.017,8.09283548]
[1643521695875,0.25,96.055,96.017,8.09283548]
[1643521696780,0.25,96.055,96.009,8.09283548]
[1643521696981,0.35,96.065,96.009,8.09283548]
[1643521697602,0.35,96.065,96.01,0.25]
[1643521698609,0.1,96.065,96.01,0.25]
[1643521699806,6.0,96.077,96.011,8.09283548]
[1643521700006,6.0,96.077,96.021,6.0]
[1643521700310,0.25,96.076,96.018,0.1]
[1643521700506,0.25,96.076,96.018,0.25]
[1643521700707,34.73051833,96.076,96.018,0.25]
[1643521700910,0.1,96.075,96.018,0.25]
[1643521701110,6.0,96.066,96.018,0.25]
[1643521701312,0.25,96.065,96.018,0.25]
[1643521701714,0.25,96.065,96.012,0.25]
[1643521701912,0.25,96.065,96.011,8.09283548]
[1643521703412,0.25,96.065,96.009,8.09283548]
[1643521705214,0.25,96.065,96.01,0.25]
[1643521706418,0.25,96.065,96.011,8.09283548]
[1643521706828,0.25,96.065,96.012,0.25]
[1643521708024,0.25,96.065,96.021,6.0]
[1643521708647,0.25,96.065,96.022,24.6859]
[1643521708853,6.0,96.076,96.023,0.1]
[1643521709257,0.25,96.075,96.023,0.1]
[1643521709452,6.0,96.068,96.024,8.09283548]
[1643521709851,0.25,96.067,96.024,8.09283548]
[1643521710452,6.25,96.067,96.024,8.09283548]
[1643521710652,6.35,96.067,96.024,8.09283548]
[1643521710855,0.25,96.067,96.024,8.09283548]
[1643521711254,0.35,96.076,96.024,8.09283548]
[1643521711454,0.25,96.076,96.024,8.09283548]
[1643521711653,0.35,96.077,96.024,8.09283548]
[1643521714565,0.35,96.082,96.024,8.09283548]
[1643521716660,0.35,96.082,96.034,6.0]
[1643521716866,0.35,96.082,96.025,0.35]
[1643521717070,0.35,96.082,96.035,8.09283548]
[1643521717460,36.78459441,96.082,96.035,8.09283548]
[1643521717662,0.1,96.081,96.035,8.09283548]
[1643521719671,0.1,96.081,96.036,24.575]
[1643521719891,0.1,96.081,96.037,0.1]
[1643521721169,0.25,96.082,96.037,0.35]
[1643521721368,6.0,96.088,96.037,0.35]
[1643521721767,0.25,96.087,96.037,0.35]
[1643521721969,40.15964406,96.087,96.037,0.35]
[1643521722270,0.1,96.086,96.037,0.35]
[1643521722668,39.25964406,96.087,96.037,0.35]
[1643521722867,39.25964406,96.087,96.037,0.25]
[1643521723468,39.25964406,96.087,96.038,8.09283548]
[1643521723869,39.25964406,96.087,96.039,0.25]
[1643521724271,0.25,96.086,96.039,0.25]
[1643521725277,6.0,96.088,96.039,0.25]
[1643521726669,6.0,96.084,96.04,8.09283548]
[1643521726871,6.0,96.084,96.041,0.25]
[1643521727273,0.25,96.083,96.041,0.25]
[1643521727673,104.45,96.083,96.04,8.09283548]
[1643521728073,0.25,96.083,96.04,8.09283548]
[1643521728278,6.0,96.073,96.04,8.09283548]
[1643521728473,34.50694538,96.072,96.04,8.09283548]
[1643521728672,34.75694538,96.072,96.04,8.09283548]
[1643521730176,34.75694538,96.072,96.037,8.09283548]
[1643521732278,6.0,96.084,96.038,0.25]
[1643521732678,0.25,96.083,96.038,0.25]
[1643521733478,0.25,96.083,96.024,0.25]
[1643521733880,0.25,96.086,96.024,0.25]
[1643521734080,0.25,96.086,96.023,6.0]
[1643521734280,0.25,96.086,96.023,6.25]
[1643521734682,0.25,96.086,96.024,22.6136]
[1643521734899,0.25,96.086,96.025,0.25]
[1643521735802,0.25,96.086,96.026,8.09283548]
[1643521736002,24.186,96.086,96.026,8.09283548]
[1643521736202,24.186,96.086,96.027,0.25]
[1643521736806,6.0,96.076,96.026,8.09283548]
[1643521737003,6.0,96.073,96.026,8.09283548]
[1643521737202,104.2,96.071,96.026,8.09283548]
[1643521737404,6.0,96.065,96.026,8.09283548]
[1643521737606,6.0,96.061,96.026,8.09283548]
[1643521737804,104.45,96.06,96.026,8.09283548]
[1643521738004,6.0,96.05,96.001,26.19694969]
[1643521738204,104.2,96.049,96.001,24.7585]
[1643521738409,6.0,96.043,95.991,42.91416097]
[1643521738610,6.0,96.039,95.991,41.47571128]
[1643521738809,44.21326014,96.038,95.991,41.47571128]
[1643521739412,6.0,96.028,95.991,41.47571128]
[1643521739807,0.25,96.027,95.991,41.47571128]
[1643521740410,6.25,96.027,95.991,41.47571128]
[1643521741010,0.25,96.027,95.991,41.47571128]
[1643521741214,43.96326014,96.038,95.991,41.47571128]
[1643521741412,0.25,96.036,95.991,41.47571128]
[1643521742316,6.0,96.028,95.991,41.47571128]
[1643521742816,0.25,96.027,95.991,41.47571128]
[1643521743012,6.25,96.027,95.991,41.47571128]
[1643521743617,104.2,96.026,95.991,41.47571128]
[1643521743815,0.25,96.025,95.991,41.47571128]
[1643521744014,6.0,96.016,95.991,41.47571128]
[1643521744214,104.2,96.014,95.991,41.47571128]
[1643521744414,0.25,96.013,95.991,41.47571128]
[1643521744816,6.0,96.004,95.991,41.47571128]
[1643521745216,0.25,96.003,95.991,41.47571128]
[1643521746319,0.25,96.003,95.964,24.542]
[1643521746520,0.25,96.003,95.965,0.25]
[1643521747321,0.25,96.013,95.965,0.25]
[1643521749523,6.0,96.004,95.965,0.25]
[1643521749925,0.25,96.003,95.965,0.25]
[1643521751327,0.25,96.003,95.964,24.542]
[1643521753427,0.25,96.014,95.964,24.542]
[1643521753856,6.0,96.005,95.964,24.542]
[1643521754255,104.45,96.004,95.964,24.542]